[Event "Lichtenrader Herbst 2019"]
[Site "Berlin"]
[Date "2019.10.15"]
[Round "4.1"]
[White "Holinka, Henning"]
[Black "Starostits, Ilmars"]
[Result "0-1"]
[ECO "B33"]
[WhiteElo "2101"]
[BlackElo "2479"]
[Annotator "ChessBase"]
[PlyCount "162"]
[EventDate "2019.10.12"]
[EventType "swiss"]
[EventCountry "GER"]
[SourceTitle "playchess.com"]
[Source "ChessBase"]
[SourceQuality "1"]
[TimeControl "40/5400+30:1800+30"]

1. e4 {[%emt 0:00:00]} c5 {[%emt 0:00:00]} 2. Nf3 {[%emt 0:00:00]} Nc6 {[%emt 0:00:00]} 3. d4 {[%emt 0:00:00]} cxd4 {[%emt 0:00:00]} 4. Nxd4 {[%emt 0:00:00]} Qb6 {[%emt 0:00:00]} 5. Nb3 {[%emt 0:01:31]} Nf6 {[%emt 0:00:00]} 6. Nc3 {[%emt 0:01:21]} e6 {[%emt 0:00:01]} 7. Qe2 {[%emt 0:05:11]} Bb4 {[%emt 0:00:28]} 8. Bd2 {[%emt 0:02:18]} O-O {[%emt 0:00:06]} 9. a3 {[%emt 0:02:38]} Be7 {[%emt 0:00:38]} 10. O-O-O {[%emt 0:01:05]} d5 {[%emt 0:00:06]} 11. Be3 {[%emt 0:05:49]} Qc7 {[%emt 0:00:06]} 12. exd5 {[%emt 0:04:11]} Nxd5 {[%emt 0:04:12]} 13. Nxd5 {[%emt 0:02:36]} exd5 {[%emt 0:00:05]} 14. Rxd5 {[%emt 0:03:52]} Be6 {[%emt 0:00:09]} 15. Rd1 {[%emt 0:01:39]} Rac8 {[%emt 0:07:32]} 16. Kb1 {[%emt 0:02:12]} Bf6 {[%emt 0:05:14]} 17. g4 {[%emt 0:11:03]} Ne5 {[%emt 0:00:56]} 18. h3 {[%emt 0:03:27]} Bc4 {[%emt 0:00:51]} 19. Qd2 {[%emt 0:08:00]} Nf3 {[%emt 0:00:11]} 20. Qa5 {[%emt 0:06:59]} b6 {[%emt 0:00:22]} 21. Qf5 {[%emt 0:02:31]} Be6 {[%emt 0:00:14]} 22. Qe4 {[%emt 0:01:40]} Bxb3 {[%emt 0:07:18]} 23. Bd3 {[%emt 0:04:45]} Rfe8 {[%emt 0:00:07]} 24. Qxh7+ {[%emt 0:09:08]} Kf8 {[%emt 0:00:07]} 25. g5 {[%emt 0:09:18]} Bxb2 {[%emt 0:09:36]} 26. cxb3 {[%emt 0:03:22]} Qc3 {[%emt 0:02:55]} 27. Bf5 {[%emt 0:02:04]} g6 {[%emt 0:03:23]} 28. Qh6+ {[%emt 0:00:36]} Kg8 {[%emt 0:01:08]} 29. Bxg6 {[%emt 0:01:11]} fxg6 {[%emt 0:00:14]} 30. Qxg6+ {[%emt 0:01:01]} Qg7 {[%emt 0:00:05]} 31. Qxg7+ {[%emt 0:00:36]} Bxg7 {[%emt 0:00:04]} 32. Rd3 {[%emt 0:01:00]} Ne5 {[%emt 0:00:15]} 33. Rdd1 {[%emt 0:03:37]} Rc3 {[%emt 0:00:11]} 34. Ka2 {[%emt 0:00:18]} Rec8 {[%emt 0:02:18]} 35. Bd4 {[%emt 0:01:10]} Rc2+ {[%emt 0:00:16]} 36. Kb1 {[%emt 0:00:04]} Nf3 {[%emt 0:06:00]} 37. Bxg7 {[%emt 0:00:41]} Nd2+ {[%emt 0:00:07]} 38. Rxd2 {[%emt 0:00:53]} Rxd2 {[%emt 0:00:03]} 39. Ba1 {[%emt 0:01:07]} Rxf2 {[%emt 0:00:07]} 40. h4 {[%emt 0:00:06]} Rg2 {[%emt 0:00:56]} 41. Bf6 {[%emt 0:03:13]} Re8 {[%emt 0:00:04]} 42. h5 {[%emt 0:02:03]} Re3 {[%emt 0:00:04]} 43. Rd1 {[%emt 0:10:03]} Rxb3+ {[%emt 0:03:17]} 44. Kc1 {[%emt 0:00:19]} Rf3 {[%emt 0:02:29]} 45. a4 {[%emt 0:06:44]} Kf7 {[%emt 0:00:26]} 46. Rd7+ {[%emt 0:01:55]} Ke6 {[%emt 0:00:06]} 47. Rd1 {[%emt 0:02:06]} Kf5 {[%emt 0:01:39]} 48. Rh1 {[%emt 0:00:51]} Rff2 {[%emt 0:02:11]} 49. h6 {[%emt 0:01:10]} Rh2 {[%emt 0:00:06]} 50. Rg1 {[%emt 0:00:54]} Kg6 {[%emt 0:00:12]} 51. a5 {[%emt 0:04:29]} b5 {[%emt 0:00:06]} 52. Kb1 {[%emt 0:01:34]} a6 {[%emt 0:00:07]} 53. Rd1 {[%emt 0:00:23]} Rh3 {[%emt 0:01:01]} 54. Bd8 {[%emt 0:00:43]} Rg2 {[%emt 0:01:38]} 55. Rd6+ {[%emt 0:00:46]} Kf5 {[%emt 0:00:58]} 56. Rd5+ {[%emt 0:00:46]} Ke6 {[%emt 0:01:03]} 57. Rd1 {[%emt 0:00:09]} Rhh2 {[%emt 0:00:06]} 58. Bf6 {[%emt 0:00:35]} Kf5 {[%emt 0:00:27]} 59. Rf1+ {[%emt 0:00:30]} Kg6 {[%emt 0:00:06]} 60. Be5 {[%emt 0:00:59]} Rh3 {[%emt 0:00:46]} 61. Bf6 {[%emt 0:00:10]} Rgh2 {[%emt 0:01:38]} 62. Rd1 {[%emt 0:00:59]} Rb3+ {[%emt 0:00:23]} 63. Kc1 {[%emt 0:00:06]} Rf3 {[%emt 0:03:05]} 64. Bd8 {[%emt 0:00:49]} Rc3+ {[%emt 0:01:10]} 65. Kb1 {[%emt 0:00:04]} Rc6 {[%emt 0:00:03]} 66. Bf6 {[%emt 0:00:40]} Re6 {[%emt 0:00:03]} 67. Bd8 {[%emt 0:00:32]} Ree2 {[%emt 0:02:49]} 68. Bf6 {[%emt 0:00:23]} Rd2 {[%emt 0:00:28]} 69. Rxd2 {[%emt 0:00:49]} Rxd2 {[%emt 0:00:03]} 70. Ka1 {[%emt 0:00:23]} b4 {[%emt 0:01:23]} 71. Kb1 {[%emt 0:00:24]} Rd5 {[%emt 0:00:09]} 72. Kb2 {[%emt 0:00:48]} Rxa5 {[%emt 0:00:05]} 73. Kb3 {[%emt 0:00:29]} Rb5 {[%emt 0:00:04]} 74. Be7 {[%emt 0:00:26]} Rb7 {[%emt 0:00:09]} 75. Bf6 {[%emt 0:00:07]} a5 {[%emt 0:00:19]} 76. Ka4 {[%emt 0:00:39]} Ra7 {[%emt 0:00:29]} 77. Bd4 {[%emt 0:00:51]} Rd7 {[%emt 0:01:31]} 78. Bf6 {[%emt 0:00:24]} Rd5 {[%emt 0:00:04]} 79. Kb3 {[%emt 0:00:34]} Rd3+ {[%emt 0:00:14]} 80. Kc2 {[%emt 0:00:21]} Rf3 {[%emt 0:00:05]} 81. Kb2 {[%emt 0:00:41]} Rxf6 {[%emt 0:00:13]} 0-1

[Event "Lichtenrader Herbst 2019"]
[Site "Berlin"]
[Date "2019.10.15"]
[Round "4.2"]
[White "Shishkin, Vadim"]
[Black "Katzir, Moshe"]
[Result "1-0"]
[ECO "A84"]
[WhiteElo "2428"]
[BlackElo "2125"]
[Annotator "NA"]
[PlyCount "63"]
[EventDate "2019.10.12"]
[EventType "swiss"]
[EventCountry "GER"]
[SourceTitle "playchess.com"]
[Source "ChessBase"]
[SourceQuality "1"]
[TimeControl "40/5400+30:1800+30"]

1. d4 {[%emt 0:00:00]} d5 {[%emt 0:00:00]} 2. c4 {[%emt 0:00:00]} e6 {[%emt 0:00:00]} 3. Nf3 {[%emt 0:00:00]} c6 {[%emt 0:00:11]} 4. Nbd2 {[%emt 0:00:05]} f5 {[%emt 0:01:01]} 5. e3 {[%emt 0:03:37]} Nf6 {[%emt 0:00:17]} 6. b3 {[%emt 0:00:12]} Bd6 {[%emt 0:00:41]} 7. Bb2 {[%emt 0:00:15]} O-O {[%emt 0:00:48]} 8. Bd3 {[%emt 0:00:47]} b6 {[%emt 0:05:00]} 9. h3 {[%emt 0:09:58]} Ne4 {[%emt 0:01:12]} 10. g4 {[%emt 0:02:27]} Qf6 {[%emt 0:13:43]} 11. Qe2 {[%emt 0:11:18]} Bb4 {[%emt 0:13:56]} 12. O-O-O {[%emt 0:08:20]} Qe7 {[%emt 0:03:57]} 13. Nb1 {[%emt 0:08:32]} Nd7 {[%emt 0:05:11]} 14. gxf5 {[%emt 0:03:41]} exf5 {[%emt 0:00:40]} 15. Rhg1 {[%emt 0:00:37]} a5 {[%emt 0:08:22]} 16. Rg2 {[%emt 0:02:20]} Kh8 {[%emt 0:05:11]} 17. Rdg1 {[%emt 0:05:50]} Rg8 {[%emt 0:01:26]} 18. Ne5 {[%emt 0:00:58]} Nxe5 {[%emt 0:00:49]} 19. dxe5 {[%emt 0:00:04]} Be6 {[%emt 0:00:28]} 20. a3 {[%emt 0:09:47]} Bc5 {[%emt 0:06:07]} 21. f3 {[%emt 0:00:32]} b5 {[%emt 0:05:41]} 22. cxd5 {[%emt 0:09:04]} cxd5 {[%emt 0:00:31]} 23. fxe4 {[%emt 0:00:04]} Rac8 {[%emt 0:03:13]} 24. exf5 {[%emt 0:04:28]} Bxe3+ {[%emt 0:00:09]} 25. Kd1 {[%emt 0:00:03]} Qc5 {[%emt 0:00:13]} 26. Qg4 {[%emt 0:05:07]} Bxg1 {[%emt 0:03:18]} 27. Rxg1 {[%emt 0:00:16]} Bf7 {[%emt 0:00:17]} 28. Re1 {[%emt 0:06:12]} Qf2 {[%emt 0:02:04]} 29. Nd2 {[%emt 0:00:29]} d4 {[%emt 0:05:31]} 30. e6 {[%emt 0:00:09]} Be8 {[%emt 0:00:01]} 31. Re2 {[%emt 0:01:22]} h5 {[%emt 0:01:00]} 32. Qg5 {[%emt 0:00:49]} 1-0

[Event "Lichtenrader Herbst 2019"]
[Site "Berlin"]
[Date "2019.10.15"]
[Round "4.3"]
[White "Tschernatsch, Johannes"]
[Black "Jacobi, Robin"]
[Result "1-0"]
[ECO "B83"]
[WhiteElo "2132"]
[BlackElo "2267"]
[Annotator "NA"]
[PlyCount "199"]
[EventDate "2019.10.12"]
[EventType "swiss"]
[EventCountry "GER"]
[SourceTitle "playchess.com"]
[Source "ChessBase"]
[SourceQuality "1"]
[TimeControl "40/5400+30:1800+30"]

1. e4 {[%emt 0:00:00]} c5 {[%emt 0:00:00]} 2. Nf3 {[%emt 0:00:00]} d6 {[%emt 0:00:00]} 3. d4 {[%emt 0:00:00]} cxd4 {[%emt 0:00:06]} 4. Nxd4 {[%emt 0:00:00]} Nf6 {[%emt 0:00:09]} 5. Nc3 {[%emt 0:00:00]} e6 {[%emt 0:00:15]} 6. Be2 {[%emt 0:04:27]} Nc6 {[%emt 0:00:52]} 7. O-O {[%emt 0:02:24]} Be7 {[%emt 0:00:21]} 8. Be3 {[%emt 0:00:45]} O-O {[%emt 0:00:16]} 9. f4 {[%emt 0:03:40]} e5 {[%emt 0:00:39]} 10. fxe5 {[%emt 0:07:44]} dxe5 {[%emt 0:00:16]} 11. Nxc6 {[%emt 0:01:09]} bxc6 {[%emt 0:00:09]} 12. Qe1 {[%emt 0:02:20]} Kh8 {[%emt 0:12:43]} 13. Rd1 {[%emt 0:05:04]} Qa5 {[%emt 0:01:26]} 14. Kh1 {[%emt 0:01:59]} Be6 {[%emt 0:05:16]} 15. Bg5 {[%emt 0:01:37]} Ng8 {[%emt 0:04:14]} 16. Qh4 {[%emt 0:08:58]} Bxg5 {[%emt 0:03:17]} 17. Qxg5 {[%emt 0:00:06]} f6 {[%emt 0:24:21]} 18. Qe3 {[%emt 0:02:13]} Rfd8 {[%emt 0:03:34]} 19. b3 {[%emt 0:02:49]} c5 {[%emt 0:10:39]} 20. Na4 {[%emt 0:02:47]} c4 {[%emt 0:04:59]} 21. Qc5 {[%emt 0:00:18]} Qxc5 {[%emt 0:00:57]} 22. Nxc5 {[%emt 0:00:05]} Bf7 {[%emt 0:00:13]} 23. b4 {[%emt 0:06:23]} c3 {[%emt 0:03:45]} 24. a4 {[%emt 0:01:30]} Rd4 {[%emt 0:04:10]} 25. Rxd4 {[%emt 0:01:14]} exd4 {[%emt 0:00:01]} 26. b5 {[%emt 0:04:02]} Rc8 {[%emt 0:01:39]} 27. Nb7 {[%emt 0:05:04]} Bg6 {[%emt 0:04:12]} 28. Rd1 {[%emt 0:10:30]} Rc7 {[%emt 0:06:51]} 29. Nd6 {[%emt 0:00:07]} Rd7 {[%emt 0:02:13]} 30. Rxd4 {[%emt 0:00:04]} Bxe4 {[%emt 0:00:19]} 31. Bc4 {[%emt 0:04:03]} Bg6 {[%emt 0:04:15]} 32. Nf7+ {[%emt 0:00:48]} Rxf7 {[%emt 0:00:35]} 33. Bxf7 {[%emt 0:00:05]} Bxf7 {[%emt 0:00:04]} 34. a5 {[%emt 0:02:40]} Be8 {[%emt 0:02:13]} 35. b6 {[%emt 0:00:03]} axb6 {[%emt 0:00:07]} 36. axb6 {[%emt 0:00:03]} Bc6 {[%emt 0:00:16]} 37. Rc4 {[%emt 0:00:04]} Ne7 {[%emt 0:00:12]} 38. Rxc3 {[%emt 0:00:20]} Kg8 {[%emt 0:00:42]} 39. Ra3 {[%emt 0:08:26]} Nd5 {[%emt 0:01:55]} 40. Rb3 {[%emt 0:02:49]} Bb7 {[%emt 0:00:51]} 41. c4 {[%emt 0:30:06]} Ne7 {[%emt 0:03:05]} 42. Rd3 {[%emt 0:00:00]} Bc6 {[%emt 0:05:15]} 43. Rd6 {[%emt 0:00:00]} Kf7 {[%emt 0:01:33]} 44. Kg1 {[%emt 0:00:00]} Ke8 {[%emt 0:01:55]} 45. Kf2 {[%emt 0:00:00]} Bb7 {[%emt 0:00:55]} 46. c5 {[%emt 0:00:00]} Nc6 {[%emt 0:07:46]} 47. g3 {[%emt 0:00:00]} Ke7 {[%emt 0:01:32]} 48. Ke3 {[%emt 0:00:00]} Nb8 {[%emt 0:03:58]} 49. Kd4 {[%emt 0:00:00]} Nc6+ {[%emt 0:01:23]} 50. Kc4 {[%emt 0:00:00]} Nb8 {[%emt 0:00:23]} 51. Kb5 {[%emt 0:00:00]} Ba6+ {[%emt 0:00:11]} 52. Ka5 {[%emt 0:00:00]} Bb7 {[%emt 0:00:31]} 53. Rd2 {[%emt 0:00:00]} Nc6+ {[%emt 0:01:11]} 54. Kb5 {[%emt 0:00:00]} Nb8 {[%emt 0:00:14]} 55. Ra2 {[%emt 0:00:00]} Nc6 {[%emt 0:02:38]} 56. Ra4 {[%emt 0:00:00]} Kd7 {[%emt 0:01:44]} 57. Rg4 {[%emt 0:00:00]} g5 {[%emt 0:01:18]} 58. Ra4 {[%emt 0:00:00]} Ke6 {[%emt 0:01:50]} 59. Ra1 {[%emt 0:00:00]} Nd4+ {[%emt 0:00:42]} 60. Kc4 {[%emt 0:00:00]} Nc6 {[%emt 0:00:12]} 61. Re1+ {[%emt 0:00:00]} Kd7 {[%emt 0:00:36]} 62. Rd1+ {[%emt 0:00:00]} Ke7 {[%emt 0:00:16]} 63. Kb5 {[%emt 0:00:00]} Nb8 {[%emt 0:00:13]} 64. Rd2 {[%emt 0:00:00]} Ba6+ {[%emt 0:00:30]} 65. Ka5 {[%emt 0:00:00]} Bb7 {[%emt 0:00:04]} 66. Kb4 {[%emt 0:00:00]} Nc6+ {[%emt 0:00:24]} 67. Kc3 {[%emt 0:00:00]} Ke6 {[%emt 0:01:42]} 68. Rd6+ {[%emt 0:00:00]} Ke7 {[%emt 0:00:11]} 69. h4 {[%emt 0:01:34]} h6 {[%emt 0:00:19]} 70. hxg5 {[%emt 0:00:10]} hxg5 {[%emt 0:00:12]} 71. Rd1 {[%emt 0:00:11]} Ne5 {[%emt 0:00:50]} 72. Kb4 {[%emt 0:00:26]} Nc6+ {[%emt 0:01:36]} 73. Kb5 {[%emt 0:00:05]} Nb8 {[%emt 0:00:26]} 74. Rd2 {[%emt 0:00:20]} Bc6+ {[%emt 0:01:11]} 75. Ka5 {[%emt 0:00:24]} g4 {[%emt 0:01:01]} 76. Rb2 {[%emt 0:02:27]} Kd7 {[%emt 0:00:28]} 77. Rh2 {[%emt 0:03:02]} Be4 {[%emt 0:00:35]} 78. Rh8 {[%emt 0:01:04]} Nc6+ {[%emt 0:00:13]} 79. Ka6 {[%emt 0:02:41]} Nb4+ {[%emt 0:00:45]} 80. Kb5 {[%emt 0:00:16]} Nc6 {[%emt 0:00:21]} 81. Rh6 {[%emt 0:00:45]} Bd3+ {[%emt 0:00:34]} 82. Ka4 {[%emt 0:00:08]} Bc2+ {[%emt 0:00:20]} 83. Ka3 {[%emt 0:00:16]} Kc8 {[%emt 0:00:49]} 84. Rxf6 {[%emt 0:00:24]} Be4 {[%emt 0:00:28]} 85. Rf7 {[%emt 0:00:37]} Kb8 {[%emt 0:00:36]} 86. Rg7 {[%emt 0:00:16]} Bf3 {[%emt 0:00:17]} 87. Kb3 {[%emt 0:00:50]} Be2 {[%emt 0:00:31]} 88. Kc3 {[%emt 0:00:13]} Bf3 {[%emt 0:00:39]} 89. Kd3 {[%emt 0:00:51]} Ne5+ {[%emt 0:00:28]} 90. Ke3 {[%emt 0:00:44]} Kc8 {[%emt 0:00:30]} 91. Kf4 {[%emt 0:01:01]} Nd3+ {[%emt 0:00:34]} 92. Kf5 {[%emt 0:00:52]} Kb8 {[%emt 0:00:22]} 93. Rc7 {[%emt 0:00:41]} Nb4 {[%emt 0:00:10]} 94. Ke6 {[%emt 0:01:17]} Na6 {[%emt 0:00:58]} 95. Kd7 {[%emt 0:00:14]} Bb7 {[%emt 0:00:15]} 96. c6 {[%emt 0:00:34]} Nc5+ {[%emt 0:00:25]} 97. Kd6 {[%emt 0:00:37]} Ne4+ {[%emt 0:00:26]} 98. Kd5 {[%emt 0:00:48]} Bxc6+ {[%emt 0:00:15]} 99. Kxc6 {[%emt 0:00:10]} Nc3 {[%emt 0:00:53]} 100. Rg7 {[%emt 0:00:14]} 1-0

[Event "Lichtenrader Herbst 2019"]
[Site "Berlin"]
[Date "2019.10.15"]
[Round "4.4"]
[White "Noetzel, Felix"]
[Black "Wierzbicki, Jirawat"]
[Result "1-0"]
[ECO "A29"]
[WhiteElo "2233"]
[BlackElo "2114"]
[Annotator "NA"]
[PlyCount "131"]
[EventDate "2019.10.12"]
[EventType "swiss"]
[EventCountry "GER"]
[SourceTitle "playchess.com"]
[Source "ChessBase"]
[SourceQuality "1"]
[TimeControl "40/5400+30:1800+30"]

1. c4 {[%emt 0:13:33]} e5 {[%emt 0:00:00]} 2. Nc3 {[%emt 0:00:06]} Nf6 {[%emt 0:00:00]} 3. g3 {[%emt 0:00:09]} d5 {[%emt 0:00:00]} 4. cxd5 {[%emt 0:00:06]} Nxd5 {[%emt 0:00:01]} 5. Bg2 {[%emt 0:00:05]} Nb6 {[%emt 0:00:04]} 6. Nf3 {[%emt 0:00:11]} Nc6 {[%emt 0:00:11]} 7. O-O {[%emt 0:00:13]} Be7 {[%emt 0:00:13]} 8. a3 {[%emt 0:00:36]} O-O {[%emt 0:00:52]} 9. b4 {[%emt 0:00:18]} Be6 {[%emt 0:00:25]} 10. Rb1 {[%emt 0:00:18]} f6 {[%emt 0:01:28]} 11. b5 {[%emt 0:00:46]} Nd4 {[%emt 0:03:33]} 12. e3 {[%emt 0:00:27]} Nf5 {[%emt 0:04:42]} 13. d4 {[%emt 0:00:50]} exd4 {[%emt 0:01:37]} 14. Nxd4 {[%emt 0:01:08]} Nxd4 {[%emt 0:02:29]} 15. exd4 {[%emt 0:01:31]} Rb8 {[%emt 0:09:36]} 16. Re1 {[%emt 0:07:34]} Bf7 {[%emt 0:04:27]} 17. a4 {[%emt 0:03:28]} Re8 {[%emt 0:05:27]} 18. Bf4 {[%emt 0:14:20]} Nc4 {[%emt 0:14:46]} 19. Qd3 {[%emt 0:10:30]} Bd6 {[%emt 0:14:53]} 20. Rxe8+ {[%emt 0:10:34]} Qxe8 {[%emt 0:00:07]} 21. Nd5 {[%emt 0:02:45]} Bxf4 {[%emt 0:02:43]} 22. gxf4 {[%emt 0:02:43]} Nb6 {[%emt 0:02:34]} 23. Nxb6 {[%emt 0:07:16]} cxb6 {[%emt 0:03:14]} 24. d5 {[%emt 0:06:22]} Qd7 {[%emt 0:04:08]} 25. d6 {[%emt 0:01:31]} Rd8 {[%emt 0:02:51]} 26. Rd1 {[%emt 0:02:12]} Qg4 {[%emt 0:08:46]} 27. Qd4 {[%emt 0:04:20]} h6 {[%emt 0:04:04]} 28. Kh1 {[%emt 0:02:32]} Rd7 {[%emt 0:03:59]} 29. Rd3 {[%emt 0:03:45]} Qe2 {[%emt 0:02:00]} 30. Re3 {[%emt 0:02:13]} Qc2 {[%emt 0:01:30]} 31. Bxb7 {[%emt 0:01:29]} Qc5 {[%emt 0:01:27]} 32. Rd3 {[%emt 0:01:02]} Qxd4 {[%emt 0:01:21]} 33. Rxd4 {[%emt 0:00:05]} Bb3 {[%emt 0:01:42]} 34. f5 {[%emt 0:01:12]} Kf7 {[%emt 0:00:22]} 35. Bc6 {[%emt 0:00:30]} Rd8 {[%emt 0:00:04]} 36. Kg2 {[%emt 0:00:18]} g6 {[%emt 0:01:05]} 37. fxg6+ {[%emt 0:00:26]} Kxg6 {[%emt 0:00:06]} 38. Kg3 {[%emt 0:00:41]} Kf5 {[%emt 0:00:55]} 39. d7 {[%emt 0:00:41]} Be6 {[%emt 0:00:54]} 40. Kf3 {[%emt 0:00:36]} Ke5 {[%emt 0:00:43]} 41. Ke3 {[%emt 0:02:47]} f5 {[%emt 0:02:38]} 42. f4+ {[%emt 0:18:18]} Kf6 {[%emt 0:00:07]} 43. Kf3 {[%emt 0:00:16]} Ke7 {[%emt 0:02:22]} 44. Kg3 {[%emt 0:01:33]} Rg8+ {[%emt 0:06:03]} 45. Kh4 {[%emt 0:02:05]} Rg4+ {[%emt 0:00:36]} 46. Kh3 {[%emt 0:04:08]} Rg8 {[%emt 0:01:20]} 47. Rd3 {[%emt 0:01:50]} Rf8 {[%emt 0:07:28]} 48. Re3 {[%emt 0:00:32]} Kf6 {[%emt 0:01:10]} 49. Kg3 {[%emt 0:02:22]} Rg8+ {[%emt 0:00:34]} 50. Kh4 {[%emt 0:00:39]} Rd8 {[%emt 0:04:59]} 51. Rg3 {[%emt 0:00:54]} Bc4 {[%emt 0:01:41]} 52. Re3 {[%emt 0:00:29]} Be6 {[%emt 0:00:14]} 53. Re5 {[%emt 0:00:32]} Rf8 {[%emt 0:01:29]} 54. Kg3 {[%emt 0:00:25]} Rg8+ {[%emt 0:00:33]} 55. Kf2 {[%emt 0:00:28]} Rd8 {[%emt 0:00:08]} 56. Ke3 {[%emt 0:00:41]} Bxd7 {[%emt 0:01:42]} 57. Rd5 {[%emt 0:00:26]} Re8+ {[%emt 0:00:41]} 58. Kd3 {[%emt 0:00:40]} Be6 {[%emt 0:01:19]} 59. Rd6 {[%emt 0:00:23]} Re7 {[%emt 0:00:29]} 60. Bd5 {[%emt 0:00:18]} h5 {[%emt 0:01:50]} 61. Kd4 {[%emt 0:00:12]} Re8 {[%emt 0:01:09]} 62. Bxe6 {[%emt 0:00:13]} Rxe6 {[%emt 0:00:04]} 63. Kd5 {[%emt 0:00:02]} Rxd6+ {[%emt 0:00:21]} 64. Kxd6 {[%emt 0:00:01]} Kf7 {[%emt 0:00:20]} 65. Ke5 {[%emt 0:00:12]} Kg6 {[%emt 0:00:05]} 66. h4 {[%emt 0:00:09]} 1-0

[Event "Lichtenrader Herbst 2019"]
[Site "Berlin"]
[Date "2019.10.15"]
[Round "4.5"]
[White "Pixa, Richard"]
[Black "Polatel, Ali"]
[Result "1/2-1/2"]
[ECO "D14"]
[WhiteElo "2075"]
[BlackElo "2235"]
[Annotator "NA"]
[PlyCount "48"]
[EventDate "2019.10.12"]
[EventType "swiss"]
[EventCountry "GER"]
[SourceTitle "playchess.com"]
[Source "ChessBase"]
[SourceQuality "1"]
[TimeControl "40/5400+30:1800+30"]

1. d4 {[%emt 0:00:00]} d5 {[%emt 0:00:00]} 2. c4 {[%emt 0:00:00]} c6 {[%emt 0:00:00]} 3. cxd5 {[%emt 0:00:00]} cxd5 {[%emt 0:00:00]} 4. Nc3 {[%emt 0:00:00]} Nf6 {[%emt 0:00:06]} 5. Nf3 {[%emt 0:00:00]} Nc6 {[%emt 0:00:13]} 6. Bf4 {[%emt 0:00:02]} Bf5 {[%emt 0:01:09]} 7. e3 {[%emt 0:00:06]} e6 {[%emt 0:00:07]} 8. Qb3 {[%emt 0:00:07]} Qb6 {[%emt 0:07:10]} 9. Qxb6 {[%emt 0:03:04]} axb6 {[%emt 0:00:08]} 10. Bb5 {[%emt 0:05:13]} Nd7 {[%emt 0:05:46]} 11. O-O {[%emt 0:03:58]} Be7 {[%emt 0:05:39]} 12. Ne5 {[%emt 0:04:15]} Ndxe5 {[%emt 0:04:55]} 13. Bxe5 {[%emt 0:00:06]} f6 {[%emt 0:06:27]} 14. Bc7 {[%emt 0:01:11]} Bd8 {[%emt 0:04:44]} 15. Bxd8 {[%emt 0:04:41]} Kxd8 {[%emt 0:00:33]} 16. Rac1 {[%emt 0:03:39]} Na7 {[%emt 0:07:21]} 17. Be2 {[%emt 0:03:38]} Nc8 {[%emt 0:04:36]} 18. a3 {[%emt 0:03:03]} Nd6 {[%emt 0:02:53]} 19. Nb5 {[%emt 0:03:07]} Nxb5 {[%emt 0:01:50]} 20. Bxb5 {[%emt 0:00:04]} Rc8 {[%emt 0:01:50]} 21. Rxc8+ {[%emt 0:02:27]} Kxc8 {[%emt 0:00:03]} 22. Rc1+ {[%emt 0:00:10]} Kd8 {[%emt 0:01:45]} 23. Kf1 {[%emt 0:04:55]} Rf8 {[%emt 0:04:22]} 24. Ke2 {[%emt 0:00:56]} Bg4+ {[%emt 0:03:54]} 1/2-1/2

[Event "Lichtenrader Herbst 2019"]
[Site "Berlin"]
[Date "2019.10.15"]
[Round "4.6"]
[White "Kovalev, Andrei"]
[Black "Federau, Juergen"]
[Result "1/2-1/2"]
[ECO "B72"]
[WhiteElo "2511"]
[BlackElo "2124"]
[Annotator "RC"]
[PlyCount "71"]
[EventDate "2019.10.12"]
[EventType "swiss"]
[EventCountry "GER"]
[SourceTitle "playchess.com"]
[Source "ChessBase"]
[SourceQuality "1"]
[TimeControl "40/5400+30:1800+30"]

1. e4 {[%emt 0:00:46]} c5 {[%emt 0:00:00]} 2. Nc3 {[%emt 0:00:24]} Nc6 {[%emt 0:00:00]} 3. Nf3 {[%emt 0:00:35]} g6 {[%emt 0:02:54]} 4. d4 {[%emt 0:00:22]} cxd4 {[%emt 0:00:06]} 5. Nxd4 {[%emt 0:00:04]} Bg7 {[%emt 0:00:14]} 6. Be3 {[%emt 0:00:35]} d6 {[%emt 0:00:32]} 7. Bc4 {[%emt 0:04:26]} Nf6 {[%emt 0:06:10]} 8. h3 {[%emt 0:00:38]} O-O {[%emt 0:01:45]} 9. Bb3 {[%emt 0:00:05]} Bd7 {[%emt 0:07:24]} 10. O-O {[%emt 0:00:17]} a6 {[%emt 0:02:08]} 11. Re1 {[%emt 0:07:24]} b5 {[%emt 0:02:28]} 12. Nxc6 {[%emt 0:12:39]} Bxc6 {[%emt 0:00:07]} 13. Bg5 {[%emt 0:03:06]} Re8 {[%emt 0:17:50]} 14. Qd2 {[%emt 0:05:03]} a5 {[%emt 0:08:48]} 15. a3 {[%emt 0:09:18]} Rc8 {[%emt 0:13:43]} 16. Qe3 {[%emt 0:17:55]} Qc7 {[%emt 0:06:04]} 17. Qf4 {[%emt 0:10:20]} Qb7 {[%emt 0:06:03]} 18. a4 {[%emt 0:03:48]} bxa4 {[%emt 0:06:07]} 19. Bxf6 {[%emt 0:08:56]} Bxf6 {[%emt 0:04:57]} 20. Nxa4 {[%emt 0:00:11]} Rf8 {[%emt 0:01:04]} 21. Nc3 {[%emt 0:03:30]} Bxc3 {[%emt 0:05:19]} 22. bxc3 {[%emt 0:00:06]} a4 {[%emt 0:00:16]} 23. Bxa4 {[%emt 0:02:45]} Bxa4 {[%emt 0:00:09]} 24. Rxa4 {[%emt 0:00:02]} Rxc3 {[%emt 0:00:31]} 25. e5 {[%emt 0:03:07]} dxe5 {[%emt 0:00:35]} 26. Qxe5 {[%emt 0:01:46]} Rxc2 {[%emt 0:00:16]} 27. Qxe7 {[%emt 0:01:27]} Qxe7 {[%emt 0:03:17]} 28. Rxe7 {[%emt 0:00:15]} h5 {[%emt 0:00:57]} 29. g4 {[%emt 0:00:23]} hxg4 {[%emt 0:00:52]} 30. hxg4 {[%emt 0:00:05]} Rc5 {[%emt 0:01:50]} 31. Kg2 {[%emt 0:00:10]} Kg7 {[%emt 0:00:39]} 32. Kg3 {[%emt 0:01:09]} Rb5 {[%emt 0:00:40]} 33. Raa7 {[%emt 0:00:27]} Rbb8 {[%emt 0:00:48]} 34. g5 {[%emt 0:00:32]} Rbe8 {[%emt 0:00:15]} 35. Reb7 {[%emt 0:00:21]} Rb8 {[%emt 0:00:17]} 36. Re7 {[%emt 0:00:03]} 1/2-1/2

[Event "Lichtenrader Herbst 2019"]
[Site "Berlin"]
[Date "2019.10.15"]
[Round "4.8"]
[White "Budt, Matthias"]
[Black "Daverkausen, Bernd"]
[Result "1/2-1/2"]
[ECO "E63"]
[WhiteElo "2188"]
[BlackElo "2122"]
[Annotator "NA"]
[PlyCount "40"]
[EventDate "2019.10.12"]
[EventType "swiss"]
[EventCountry "GER"]
[SourceTitle "playchess.com"]
[Source "ChessBase"]
[SourceQuality "1"]
[TimeControl "40/5400+30:1800+30"]

1. d4 {[%emt 0:00:00]} Nf6 {[%emt 0:00:00]} 2. Nf3 {[%emt 0:00:00]} g6 {[%emt 0:00:00]} 3. c4 {[%emt 0:00:00]} Bg7 {[%emt 0:00:08]} 4. g3 {[%emt 0:00:18]} O-O {[%emt 0:00:12]} 5. Bg2 {[%emt 0:00:05]} d6 {[%emt 0:00:14]} 6. O-O {[%emt 0:00:10]} Nc6 {[%emt 0:00:15]} 7. Nc3 {[%emt 0:00:38]} a6 {[%emt 0:00:14]} 8. b3 {[%emt 0:00:53]} Rb8 {[%emt 0:01:27]} 9. Nd5 {[%emt 0:00:32]} e6 {[%emt 0:01:21]} 10. Nxf6+ {[%emt 0:01:02]} Qxf6 {[%emt 0:00:13]} 11. Bg5 {[%emt 0:06:22]} Qf5 {[%emt 0:00:24]} 12. Qd2 {[%emt 0:00:16]} Qa5 {[%emt 0:02:54]} 13. Qxa5 {[%emt 0:05:14]} Nxa5 {[%emt 0:00:07]} 14. Rac1 {[%emt 0:02:59]} Nc6 {[%emt 0:13:26]} 15. Rfd1 {[%emt 0:04:22]} h6 {[%emt 0:05:57]} 16. Be3 {[%emt 0:01:20]} Ne7 {[%emt 0:01:28]} 17. Bd2 {[%emt 0:16:21]} b6 {[%emt 0:19:35]} 18. c5 {[%emt 0:04:38]} Bb7 {[%emt 0:03:59]} 19. Ne1 {[%emt 0:12:57]} Bxg2 {[%emt 0:03:39]} 20. Kxg2 {[%emt 0:00:15]} Rfd8 {[%emt 0:06:02]} 1/2-1/2